[Event "*** Titled Tuesday Blitz"]
[Site "Chess.com"]
[Date "2019.02.05"]
[Round "1"]
[White "in_shambles"]
[Black "Abund"]
[Result "1/2-1/2"]
[WhiteElo "2001"]
[BlackElo "2460"]
[TimeControl "180+2"]
[EndTime "13:09:57 PST"]
[Termination "Game drawn - insufficient material"]

1. d4 {[%clk 0:03:01.9]} 1... Nf6 {[%clk 0:03:00.3]} 2. c4 {[%clk 0:03:03.1]}
2... e6 {[%clk 0:03:01.6]} 3. Nc3 {[%clk 0:03:04.4]} 3... Bb4 {[%clk 0:03:02.2]}
4. Qc2 {[%clk 0:03:05.6]} 4... d5 {[%clk 0:03:02.9]} 5. Nf3 {[%clk 0:03:05.4]}
5... O-O {[%clk 0:02:58.8]} 6. cxd5 {[%clk 0:03:06.1]} 6... Qxd5 {[%clk
0:02:50]} 7. a3 {[%clk 0:02:58]} 7... Bxc3+ {[%clk 0:02:48.5]} 8. bxc3 {[%clk
0:02:56.5]} 8... c5 {[%clk 0:02:45.3]} 9. Bf4 {[%clk 0:02:53.4]} 9... Nc6 {[%clk
0:02:42.1]} 10. e3 {[%clk 0:02:54.1]} 10... cxd4 {[%clk 0:02:33]} 11. cxd4
{[%clk 0:02:55]} 11... Ne4 {[%clk 0:02:31.3]} 12. Bd3 {[%clk 0:02:40.3]} 12...
Qa5+ {[%clk 0:02:30.7]} 13. Nd2 {[%clk 0:02:37.5]} 13... Nxd2 {[%clk 0:01:57.4]}
14. Qxd2 {[%clk 0:02:38.1]} 14... b6 {[%clk 0:01:46.9]} 15. Qxa5 {[%clk
0:02:31.2]} 15... Nxa5 {[%clk 0:01:47.4]} 16. Be4 {[%clk 0:02:32.1]} 16... Bb7
{[%clk 0:01:48.5]} 17. Bxb7 {[%clk 0:02:32.1]} 17... Nxb7 {[%clk 0:01:50.4]} 18.
O-O {[%clk 0:02:33.3]} 18... Rfc8 {[%clk 0:01:50.2]} 19. Rac1 {[%clk 0:02:32.6]}
19... Kf8 {[%clk 0:01:45.9]} 20. Rfd1 {[%clk 0:02:25.4]} 20... Ke7 {[%clk
0:01:44.4]} 21. Kf1 {[%clk 0:02:26.4]} 21... Na5 {[%clk 0:01:43.1]} 22. Ke2
{[%clk 0:02:24.5]} 22... Nc4 {[%clk 0:01:43.9]} 23. Rc3 {[%clk 0:02:22.9]} 23...
b5 {[%clk 0:01:33]} 24. Rdc1 {[%clk 0:02:22.8]} 24... Rc6 {[%clk 0:01:33.8]} 25.
a4 {[%clk 0:02:21.8]} 25... a6 {[%clk 0:01:35.2]} 26. axb5 {[%clk 0:02:08.7]}
26... axb5 {[%clk 0:01:34.8]} 27. R1c2 {[%clk 0:01:59.7]} 27... Kd7 {[%clk
0:01:24.8]} 28. Rb3 {[%clk 0:01:53.6]} 28... Na3 {[%clk 0:01:15.2]} 29. Ra2
{[%clk 0:01:44.8]} 29... Rca6 {[%clk 0:01:12.6]} 30. Kd3 {[%clk 0:01:32.9]}
30... Kc6 {[%clk 0:01:10.4]} 31. Ra1 {[%clk 0:01:25.8]} 31... Nc4 {[%clk
0:01:10.1]} 32. Rab1 {[%clk 0:01:25.1]} 32... Ra3 {[%clk 0:01:04.3]} 33. e4
{[%clk 0:01:18.4]} 33... Rxb3+ {[%clk 0:01:00.2]} 34. Rxb3 {[%clk 0:01:19.4]}
34... Ra2 {[%clk 0:00:44.4]} 35. Be3 {[%clk 0:01:04.3]} 35... Na5 {[%clk
0:00:35]} 36. d5+ {[%clk 0:00:47.4]} 36... exd5 {[%clk 0:00:31]} 37. exd5+
{[%clk 0:00:48.4]} 37... Kxd5 {[%clk 0:00:29.6]} 38. Rxb5+ {[%clk 0:00:49.5]}
38... Kd6 {[%clk 0:00:24.8]} 39. Rc5 {[%clk 0:00:35.7]} 39... Nc6 {[%clk
0:00:21.9]} 40. Rc3 {[%clk 0:00:21.3]} 40... Ne5+ {[%clk 0:00:20.2]} 41. Ke4
{[%clk 0:00:21.7]} 41... Ra4+ {[%clk 0:00:20.1]} 42. Bd4 {[%clk 0:00:19.7]}
42... Nc6 {[%clk 0:00:20]} 43. Rd3 {[%clk 0:00:19.5]} 43... Ke6 {[%clk
0:00:18.1]} 44. Ke3 {[%clk 0:00:20.5]} 44... g6 {[%clk 0:00:17.7]} 45. Bc3
{[%clk 0:00:17.5]} 45... Ne7 {[%clk 0:00:17.9]} 46. Ke2 {[%clk 0:00:16]} 46...
Nd5 {[%clk 0:00:18.2]} 47. Bd2 {[%clk 0:00:16.7]} 47... Ra2 {[%clk 0:00:19.2]}
48. g3 {[%clk 0:00:17]} 48... h5 {[%clk 0:00:19.6]} 49. Ke1 {[%clk 0:00:14.2]}
49... Ke5 {[%clk 0:00:20.4]} 50. f4+ {[%clk 0:00:14.9]} 50... Ke4 {[%clk
0:00:20.9]} 51. Rb3 {[%clk 0:00:15.1]} 51... h4 {[%clk 0:00:18.6]} 52. Rb7
{[%clk 0:00:14.4]} 52... Kd3 {[%clk 0:00:16.7]} 53. Rd7 {[%clk 0:00:14.1]} 53...
Ke4 {[%clk 0:00:13.7]} 54. Rxf7 {[%clk 0:00:14.8]} 54... hxg3 {[%clk 0:00:13.1]}
55. hxg3 {[%clk 0:00:15.1]} 55... Kf3 {[%clk 0:00:13.4]} 56. Rg7 {[%clk
0:00:16]} 56... Ra6 {[%clk 0:00:14.6]} 57. Kd1 {[%clk 0:00:15.9]} 57... Kxg3
{[%clk 0:00:15.6]} 58. f5 {[%clk 0:00:17.1]} 58... Nf4 {[%clk 0:00:10.3]} 59.
Bxf4+ {[%clk 0:00:17.1]} 59... Kxf4 {[%clk 0:00:12.2]} 60. fxg6 {[%clk
0:00:18.2]} 60... Kg5 {[%clk 0:00:12.8]} 61. Rg8 {[%clk 0:00:18.7]} 61... Rxg6
{[%clk 0:00:14.5]} 62. Rxg6+ {[%clk 0:00:19.8]} 62... Kxg6 {[%clk 0:00:16.4]}
1/2-1/2

[Event "*** Titled Tuesday Blitz"]
[Site "Chess.com"]
[Date "2019.02.05"]
[Round "1"]
[White "David_Klein"]
[Black "TristanCalistri"]
[Result "1-0"]
[WhiteElo "2586"]
[BlackElo "2224"]
[TimeControl "180+2"]
[EndTime "13:10:04 PST"]
[Termination "David_Klein won by resignation"]

1. e4 {[%clk 0:03:01.9]} 1... e5 {[%clk 0:02:55.9]} 2. Nf3 {[%clk 0:03:02.7]}
2... d6 {[%clk 0:02:57]} 3. d4 {[%clk 0:03:03.4]} 3... exd4 {[%clk 0:02:58.9]}
4. Nxd4 {[%clk 0:03:04.8]} 4... Nf6 {[%clk 0:03:00.4]} 5. Nc3 {[%clk 0:03:05.7]}
5... Be7 {[%clk 0:03:01.9]} 6. g3 {[%clk 0:03:06.8]} 6... a5 {[%clk 0:03:01.6]}
7. Bg2 {[%clk 0:03:06.1]} 7... a4 {[%clk 0:03:02.9]} 8. O-O {[%clk 0:03:03.2]}
8... O-O {[%clk 0:03:03.7]} 9. h3 {[%clk 0:03:03.7]} 9... Re8 {[%clk 0:03:04.8]}
10. a3 {[%clk 0:02:57.9]} 10... Bf8 {[%clk 0:03:05.6]} 11. g4 {[%clk 0:02:55.5]}
11... c6 {[%clk 0:03:04]} 12. Nf5 {[%clk 0:02:41.2]} 12... d5 {[%clk 0:02:54.4]}
13. exd5 {[%clk 0:02:38.3]} 13... Bxf5 {[%clk 0:02:54.8]} 14. gxf5 {[%clk
0:02:37.1]} 14... Nxd5 {[%clk 0:02:54.9]} 15. Nxd5 {[%clk 0:02:37.5]} 15... cxd5
{[%clk 0:02:55.4]} 16. Qxd5 {[%clk 0:02:38.5]} 16... Qf6 {[%clk 0:02:15.1]} 17.
Bf4 {[%clk 0:01:52.1]} 17... Nc6 {[%clk 0:02:13.8]} 18. c3 {[%clk 0:01:47.1]}
18... Ra5 {[%clk 0:02:08.7]} 19. Qd7 {[%clk 0:01:44]} 19... Re7 {[%clk
0:02:08.3]} 20. Qd3 {[%clk 0:01:03.7]} 20... Rxf5 {[%clk 0:02:08.4]} 21. Bg3
{[%clk 0:01:04.3]} 21... Ne5 {[%clk 0:02:05.1]} 22. Qc2 {[%clk 0:00:58.6]} 22...
Nf3+ {[%clk 0:02:04.9]} 23. Kh1 {[%clk 0:00:45.9]} 23... Re8 {[%clk 0:01:40.5]}
24. Rad1 {[%clk 0:00:41.5]} 24... b5 {[%clk 0:01:37.8]} 25. Qd3 {[%clk
0:00:27.7]} 25... g6 {[%clk 0:01:33.3]} 26. Qd7 {[%clk 0:00:28.1]} 26... Qe7
{[%clk 0:01:16.9]} 27. Qc6 {[%clk 0:00:21.6]} 27... Qe2 {[%clk 0:01:03.6]} 28.
Rd5 {[%clk 0:00:16.8]} 28... Rxd5 {[%clk 0:00:57.3]} 29. Qxd5 {[%clk 0:00:18.7]}
29... Nd2 {[%clk 0:00:58.5]} 30. Rg1 {[%clk 0:00:15.2]} 30... Ne4 {[%clk
0:00:50.8]} 31. Bxe4 {[%clk 0:00:11.6]} 31... Rxe4 {[%clk 0:00:49.8]} 32. Kg2
{[%clk 0:00:12.7]} 32... h5 {[%clk 0:00:48]} 33. h4 {[%clk 0:00:12.7]} 33... Re6
{[%clk 0:00:36.3]} 34. Rd1 {[%clk 0:00:12.2]} 34... Qxb2 {[%clk 0:00:33.6]} 35.
Qa8 {[%clk 0:00:11]} 35... Qc2 {[%clk 0:00:29]} 36. Rd8 {[%clk 0:00:11.3]} 36...
Qe4+ {[%clk 0:00:29.9]} 37. Qxe4 {[%clk 0:00:12.7]} 37... Rxe4 {[%clk
0:00:31.1]} 38. Bd6 {[%clk 0:00:14.3]} 38... Kg7 {[%clk 0:00:31.2]} 39. Bxf8+
{[%clk 0:00:14.9]} 39... Kf6 {[%clk 0:00:32.5]} 40. Bc5 {[%clk 0:00:15.8]} 40...
Rg4+ {[%clk 0:00:30.1]} 41. Kf3 {[%clk 0:00:15.7]} 41... Rxh4 {[%clk 0:00:31.6]}
42. Bd4+ {[%clk 0:00:17]} 42... Ke6 {[%clk 0:00:32.5]} 43. Rb8 {[%clk
0:00:18.1]} 43... Rh1 {[%clk 0:00:31.6]} 44. Rxb5 {[%clk 0:00:18.4]} 44... Ra1
{[%clk 0:00:33.1]} 45. Rb6+ {[%clk 0:00:18.5]} 45... Kd5 {[%clk 0:00:33.5]} 46.
Rf6 {[%clk 0:00:19.5]} 46... Rxa3 {[%clk 0:00:33.8]} 47. Rxf7 {[%clk 0:00:20.7]}
47... Rb3 {[%clk 0:00:35]} 48. Rg7 {[%clk 0:00:21.3]} 48... a3 {[%clk
0:00:33.4]} 49. Rxg6 {[%clk 0:00:22.5]} 49... a2 {[%clk 0:00:34.9]} 50. Ra6
{[%clk 0:00:23]} 50... Rb2 {[%clk 0:00:35.2]} 51. Bh8 {[%clk 0:00:23.4]} 51...
Kc4 {[%clk 0:00:35.5]} 52. Kg3 {[%clk 0:00:24.7]} 52... Re2 {[%clk 0:00:32.1]}
53. f4 {[%clk 0:00:24.9]} 53... h4+ {[%clk 0:00:32]} 54. Kxh4 {[%clk 0:00:25.9]}
54... Rh2+ {[%clk 0:00:33.1]} 55. Kg5 {[%clk 0:00:27.3]} 55... Rxh8 {[%clk
0:00:34.6]} 56. Rxa2 {[%clk 0:00:28.9]} 56... Kxc3 {[%clk 0:00:34.7]} 57. f5
{[%clk 0:00:28.8]} 57... Kd4 {[%clk 0:00:35.6]} 58. Re2 {[%clk 0:00:29.8]} 58...
Kd5 {[%clk 0:00:35.5]} 59. f6 {[%clk 0:00:30.7]} 59... Kd6 {[%clk 0:00:36.5]}
60. Kg6 {[%clk 0:00:31.7]} 60... Rg8+ {[%clk 0:00:36.5]} 61. Kh7 {[%clk
0:00:32.6]} 61... Rg3 {[%clk 0:00:35]} 62. f7 {[%clk 0:00:33.3]} 62... Rh3+
{[%clk 0:00:36.2]} 63. Kg8 {[%clk 0:00:34.1]} 63... Rg3+ {[%clk 0:00:37.2]} 64.
Kf8 {[%clk 0:00:35.3]} 64... Kd7 {[%clk 0:00:36.2]} 65. Rd2+ {[%clk 0:00:35]}
65... Ke6 {[%clk 0:00:36.1]} 66. Ke8 {[%clk 0:00:33.7]} 66... Ra3 {[%clk
0:00:30.6]} 67. f8=Q {[%clk 0:00:34.1]} 1-0

[Event "*** Titled Tuesday Blitz"]
[Site "Chess.com"]
[Date "2019.02.05"]
[Round "1"]
[White "Induwara_IM"]
[Black "CaptainCasanova"]
[Result "0-1"]
[WhiteElo "2380"]
[BlackElo "2774"]
[TimeControl "180+2"]
[EndTime "13:10:13 PST"]
[Termination "CaptainCasanova won by resignation"]

1. d4 {[%clk 0:02:35.9]} 1... Nf6 {[%clk 0:02:59]} 2. c4 {[%clk 0:02:36.1]} 2...
g6 {[%clk 0:03:00.9]} 3. Nc3 {[%clk 0:02:35.3]} 3... Bg7 {[%clk 0:03:02.8]} 4.
e4 {[%clk 0:02:36]} 4... d6 {[%clk 0:03:04.4]} 5. h3 {[%clk 0:02:37.3]} 5... O-O
{[%clk 0:03:05.3]} 6. Be3 {[%clk 0:02:38.7]} 6... c5 {[%clk 0:03:00.2]} 7. Nf3
{[%clk 0:02:38]} 7... Qa5 {[%clk 0:02:59.2]} 8. Bd3 {[%clk 0:02:34.8]} 8... Nc6
{[%clk 0:02:41]} 9. O-O {[%clk 0:02:23.6]} 9... Ng4 {[%clk 0:02:24.3]} 10. hxg4
{[%clk 0:02:13.7]} 10... cxd4 {[%clk 0:02:25.3]} 11. Nxd4 {[%clk 0:02:14.6]}
11... Nxd4 {[%clk 0:02:26]} 12. Nd5 {[%clk 0:02:08]} 12... Nc6 {[%clk
0:02:16.4]} 13. Qe2 {[%clk 0:02:00.3]} 13... e6 {[%clk 0:02:13.3]} 14. Nf4
{[%clk 0:02:01]} 14... Qe5 {[%clk 0:02:06.9]} 15. Rab1 {[%clk 0:01:59.4]} 15...
b6 {[%clk 0:02:05.7]} 16. Nh3 {[%clk 0:01:48.1]} 16... Nd4 {[%clk 0:01:59.2]}
17. Qd1 {[%clk 0:01:47.9]} 17... Bb7 {[%clk 0:01:50.4]} 18. f4 {[%clk
0:01:48.5]} 18... Qf6 {[%clk 0:01:49.2]} 19. g5 {[%clk 0:01:48]} 19... Qe7
{[%clk 0:01:50.7]} 20. Nf2 {[%clk 0:01:45.2]} 20... Nc6 {[%clk 0:01:08.8]} 21.
Ng4 {[%clk 0:01:44.4]} 21... Nb4 {[%clk 0:01:10.2]} 22. a3 {[%clk 0:01:34.1]}
22... Nxd3 {[%clk 0:01:07.3]} 23. Qxd3 {[%clk 0:01:36]} 23... Rad8 {[%clk
0:01:03]} 24. b4 {[%clk 0:01:32.5]} 24... Qc7 {[%clk 0:01:01.2]} 25. Rbc1 {[%clk
0:01:30.1]} 25... Qc6 {[%clk 0:01:01.5]} 26. Nf2 {[%clk 0:01:22.8]} 26... Rfe8
{[%clk 0:00:59.6]} 27. b5 {[%clk 0:01:12.9]} 27... Qd7 {[%clk 0:00:58.6]} 28.
Ng4 {[%clk 0:01:12.7]} 28... d5 {[%clk 0:00:53.2]} 29. c5 {[%clk 0:01:00.7]}
29... bxc5 {[%clk 0:00:52.2]} 30. Bxc5 {[%clk 0:00:56.5]} 30... dxe4 {[%clk
0:00:35]} 31. Qxd7 {[%clk 0:00:53.4]} 31... Rxd7 {[%clk 0:00:36.9]} 32. Bxa7
{[%clk 0:00:54.2]} 32... Rd3 {[%clk 0:00:26.5]} 33. a4 {[%clk 0:00:50.2]} 33...
Ra3 {[%clk 0:00:26.5]} 34. Rc4 {[%clk 0:00:50.4]} 34... Bd5 {[%clk 0:00:26.8]}
35. Rb4 {[%clk 0:00:48.8]} 35... Bc3 {[%clk 0:00:27.7]} 36. Rfb1 {[%clk
0:00:47.9]} 36... Bxb4 {[%clk 0:00:28.1]} 37. Rxb4 {[%clk 0:00:49.8]} 37... Rc8
{[%clk 0:00:27.6]} 38. b6 {[%clk 0:00:48.9]} 38... Bb7 {[%clk 0:00:27.7]} 39.
Nf6+ {[%clk 0:00:44.2]} 39... Kf8 {[%clk 0:00:29]} 40. Nxe4 {[%clk 0:00:42]}
40... Rc2 {[%clk 0:00:27.6]} 41. Rd4 {[%clk 0:00:31]} 41... Ke7 {[%clk
0:00:28.9]} 42. a5 {[%clk 0:00:30.8]} 42... Rxa5 {[%clk 0:00:28.7]} 43. Bb8
{[%clk 0:00:30.7]} 43... Bxe4 {[%clk 0:00:24.8]} 44. Rxe4 {[%clk 0:00:30.6]}
44... Raa2 {[%clk 0:00:25.7]} 45. b7 {[%clk 0:00:26.9]} 45... Rxg2+ {[%clk
0:00:26.1]} 46. Kf1 {[%clk 0:00:27.8]} 46... Rgb2 {[%clk 0:00:28]} 47. Be5
{[%clk 0:00:27]} 47... Rxb7 {[%clk 0:00:28.3]} 48. Bf6+ {[%clk 0:00:26.7]} 48...
Ke8 {[%clk 0:00:26.6]} 49. Re1 {[%clk 0:00:27.1]} 49... Kd7 {[%clk 0:00:21.6]}
50. Rd1+ {[%clk 0:00:27.3]} 50... Kc6 {[%clk 0:00:23]} 51. Be5 {[%clk 0:00:27]}
51... Rb3 {[%clk 0:00:21.7]} 52. Rd6+ {[%clk 0:00:27.3]} 52... Kc5 {[%clk
0:00:23.1]} 53. Rd1 {[%clk 0:00:27.1]} 53... Rh3 {[%clk 0:00:22.8]} 54. Kg1
{[%clk 0:00:28.2]} 54... Rhh2 {[%clk 0:00:20.9]} 55. Bd6+ {[%clk 0:00:22.1]}
55... Kc4 {[%clk 0:00:21.6]} 56. Rc1+ {[%clk 0:00:19.8]} 56... Kd5 {[%clk
0:00:22.1]} 57. Rd1+ {[%clk 0:00:19.9]} 57... Ke4 {[%clk 0:00:23.4]} 58. Re1+
{[%clk 0:00:18.1]} 58... Kf3 {[%clk 0:00:24.8]} 59. Rf1+ {[%clk 0:00:18.6]}
59... Kg4 {[%clk 0:00:25.8]} 60. Re1 {[%clk 0:00:16.5]} 60... Rag2+ {[%clk
0:00:26.8]} 61. Kf1 {[%clk 0:00:17.7]} 61... Kf3 {[%clk 0:00:28.6]} 0-1

[Event "*** Titled Tuesday Blitz"]
[Site "Chess.com"]
[Date "2019.02.05"]
[Round "1"]
[White "ajkom197"]
[Black "jefferyx"]
[Result "0-1"]
[WhiteElo "2438"]
[BlackElo "2871"]
[TimeControl "180+2"]
[EndTime "13:10:14 PST"]
[Termination "jefferyx won by resignation"]

1. d4 {[%clk 0:02:56.7]} 1... g6 {[%clk 0:03:00.9]} 2. g3 {[%clk 0:02:53.3]}
2... Bg7 {[%clk 0:03:01.6]} 3. Bg2 {[%clk 0:02:54.2]} 3... c5 {[%clk 0:03:02.7]}
4. c3 {[%clk 0:02:54.3]} 4... Qc7 {[%clk 0:02:51]} 5. Nf3 {[%clk 0:02:54.6]}
5... Nf6 {[%clk 0:02:52.2]} 6. O-O {[%clk 0:02:54.8]} 6... O-O {[%clk
0:02:53.3]} 7. Na3 {[%clk 0:02:53.5]} 7... d5 {[%clk 0:02:52.1]} 8. Bf4 {[%clk
0:02:51.8]} 8... Qa5 {[%clk 0:02:52.8]} 9. dxc5 {[%clk 0:02:46.5]} 9... Qxc5
{[%clk 0:02:52.3]} 10. Nc2 {[%clk 0:02:34.7]} 10... Nc6 {[%clk 0:02:51.7]} 11.
Nfd4 {[%clk 0:02:34.2]} 11... Bd7 {[%clk 0:02:34.4]} 12. Nxc6 {[%clk 0:02:33.8]}
12... Bxc6 {[%clk 0:02:32]} 13. Be5 {[%clk 0:02:34.4]} 13... e6 {[%clk
0:02:25.1]} 14. Nb4 {[%clk 0:02:32.8]} 14... Qe7 {[%clk 0:02:24.2]} 15. Qd4
{[%clk 0:02:31.1]} 15... Bb5 {[%clk 0:02:20.2]} 16. Rfe1 {[%clk 0:02:28.1]}
16... Rfc8 {[%clk 0:02:21]} 17. b3 {[%clk 0:02:18.4]} 17... Ne8 {[%clk
0:02:07.2]} 18. Bxg7 {[%clk 0:02:16.2]} 18... Nxg7 {[%clk 0:02:09.1]} 19. e4
{[%clk 0:02:15.1]} 19... a5 {[%clk 0:02:10.1]} 20. Nd3 {[%clk 0:02:11.4]} 20...
dxe4 {[%clk 0:02:07.8]} 21. Bxe4 {[%clk 0:02:11.7]} 21... Ra6 {[%clk 0:02:01.8]}
22. c4 {[%clk 0:02:03.6]} 22... Rd6 {[%clk 0:02:00.7]} 23. Qe3 {[%clk
0:02:02.2]} 23... Bc6 {[%clk 0:01:59.3]} 24. Bxc6 {[%clk 0:02:00.1]} 24... Nf5
{[%clk 0:01:59.5]} 25. Qe5 {[%clk 0:01:53.1]} 25... bxc6 {[%clk 0:01:45.5]} 26.
Nc5 {[%clk 0:01:46.1]} 26... Nd4 {[%clk 0:01:43.9]} 27. Kg2 {[%clk 0:01:28.2]}
27... f6 {[%clk 0:01:29.9]} 28. Qe4 {[%clk 0:01:28.6]} 28... Qa7 {[%clk
0:01:24.5]} 29. Na4 {[%clk 0:01:17.6]} 29... c5 {[%clk 0:01:23.8]} 30. Rad1
{[%clk 0:01:14.1]} 30... f5 {[%clk 0:01:24.1]} 31. Qe5 {[%clk 0:01:02.2]} 31...
Qa8+ {[%clk 0:01:19.1]} 32. Kh3 {[%clk 0:01:00.2]} 32... Rcd8 {[%clk 0:01:07.2]}
33. Nxc5 {[%clk 0:00:27.9]} 33... Nf3 {[%clk 0:01:08.2]} 34. Rxd6 {[%clk
0:00:11.6]} 34... Nxe5 {[%clk 0:01:08.7]} 35. Rxd8+ {[%clk 0:00:11.4]} 35...
Qxd8 {[%clk 0:01:10.6]} 36. Rxe5 {[%clk 0:00:12.6]} 36... Qd2 {[%clk 0:00:32.8]}
37. Nxe6 {[%clk 0:00:08.9]} 37... Qxf2 {[%clk 0:00:30.8]} 38. Rxa5 {[%clk
0:00:07.7]} 38... h6 {[%clk 0:00:13.6]} 39. Nf4 {[%clk 0:00:06.2]} 39... g5
{[%clk 0:00:13]} 40. Rxf5 {[%clk 0:00:05.7]} 40... Qf1+ {[%clk 0:00:11.5]} 41.
Kg4 {[%clk 0:00:06.8]} 41... Qd1+ {[%clk 0:00:13.4]} 42. Kh3 {[%clk 0:00:07.7]}
42... Qd7 {[%clk 0:00:14.3]} 43. g4 {[%clk 0:00:06.8]} 43... gxf4 {[%clk
0:00:09.8]} 44. Rxf4 {[%clk 0:00:08]} 44... Qd3+ {[%clk 0:00:11]} 45. Kh4 {[%clk
0:00:08.3]} 45... Qd2 {[%clk 0:00:12.2]} 46. Kg3 {[%clk 0:00:08.5]} 46... Qxa2
{[%clk 0:00:13.7]} 47. c5 {[%clk 0:00:08.9]} 47... Qxb3+ {[%clk 0:00:14.5]} 48.
Rf3 {[%clk 0:00:07.3]} 48... Qc2 {[%clk 0:00:14.5]} 49. c6 {[%clk 0:00:07.2]}
49... Qxc6 {[%clk 0:00:15]} 50. h3 {[%clk 0:00:07.4]} 50... Kg7 {[%clk
0:00:16.5]} 51. Rf5 {[%clk 0:00:08]} 51... Qd6+ {[%clk 0:00:17.7]} 52. Kg2
{[%clk 0:00:09]} 52... Kg6 {[%clk 0:00:19.6]} 53. Rf3 {[%clk 0:00:08.6]} 53...
Qd5 {[%clk 0:00:19.7]} 54. Kg3 {[%clk 0:00:09.8]} 54... Qe5+ {[%clk 0:00:21.1]}
55. Kg2 {[%clk 0:00:11.1]} 55... Qa1 {[%clk 0:00:21.8]} 56. Kg3 {[%clk
0:00:12.3]} 56... Qg1+ {[%clk 0:00:22.4]} 57. Kf4 {[%clk 0:00:08.8]} 57... Qh2+
{[%clk 0:00:23.9]} 58. Ke3 {[%clk 0:00:09.7]} 58... Kg5 {[%clk 0:00:21.4]} 59.
Rf5+ {[%clk 0:00:10.3]} 59... Kh4 {[%clk 0:00:15.5]} 60. Rh5+ {[%clk 0:00:10.5]}
60... Kg3 {[%clk 0:00:17.1]} 61. Rxh6 {[%clk 0:00:11.5]} 61... Qf2+ {[%clk
0:00:18]} 62. Kd3 {[%clk 0:00:11.3]} 62... Qf3+ {[%clk 0:00:17.5]} 63. Kc2
{[%clk 0:00:12.7]} 63... Qe2+ {[%clk 0:00:16]} 64. Kb1 {[%clk 0:00:13.6]} 64...
Qd1+ {[%clk 0:00:17.1]} 65. Ka2 {[%clk 0:00:14.3]} 65... Qd2+ {[%clk 0:00:19]}
66. Ka3 {[%clk 0:00:15.7]} 66... Qxh6 {[%clk 0:00:20.9]} 0-1

[Event "*** Titled Tuesday Blitz"]
[Site "Chess.com"]
[Date "2019.02.05"]
[Round "1"]
[White "Angry_Twin"]
[Black "x-6099009240"]
[Result "1-0"]
[WhiteElo "2791"]
[BlackElo "2389"]
[TimeControl "180+2"]
[EndTime "13:10:16 PST"]
[Termination "Angry_Twin won by resignation"]

1. e4 {[%clk 0:03:01.9]} 1... c5 {[%clk 0:03:00.9]} 2. Nf3 {[%clk 0:03:02.4]}
2... d6 {[%clk 0:03:02.5]} 3. d4 {[%clk 0:03:02.8]} 3... cxd4 {[%clk 0:03:02.5]}
4. Nxd4 {[%clk 0:03:04.7]} 4... Nf6 {[%clk 0:03:03.6]} 5. Nc3 {[%clk 0:03:06.2]}
5... a6 {[%clk 0:03:04.4]} 6. Be3 {[%clk 0:03:06.5]} 6... e5 {[%clk 0:03:02.3]}
7. Nb3 {[%clk 0:03:07.5]} 7... Be6 {[%clk 0:03:02.2]} 8. f3 {[%clk 0:03:07.6]}
8... h5 {[%clk 0:03:03.5]} 9. Qd2 {[%clk 0:03:08.4]} 9... Nbd7 {[%clk
0:03:03.7]} 10. Nd5 {[%clk 0:03:09.3]} 10... Bxd5 {[%clk 0:03:04.2]} 11. exd5
{[%clk 0:03:11.2]} 11... g6 {[%clk 0:03:05.8]} 12. Be2 {[%clk 0:03:10.8]} 12...
Bg7 {[%clk 0:03:06.7]} 13. O-O {[%clk 0:03:11.9]} 13... O-O {[%clk 0:03:07.6]}
14. c4 {[%clk 0:03:13]} 14... Qc7 {[%clk 0:03:01.7]} 15. Na5 {[%clk 0:03:11.5]}
15... e4 {[%clk 0:03:01]} 16. Rac1 {[%clk 0:03:09.6]} 16... exf3 {[%clk
0:03:00.9]} 17. gxf3 {[%clk 0:03:10.6]} 17... Rae8 {[%clk 0:03:02.4]} 18. b4
{[%clk 0:03:11.2]} 18... Rxe3 {[%clk 0:02:59.5]} 19. Qxe3 {[%clk 0:03:10.9]}
19... Re8 {[%clk 0:03:01.1]} 20. Qd2 {[%clk 0:02:26.2]} 20... Qb6+ {[%clk
0:02:56.7]} 21. Kh1 {[%clk 0:02:22.6]} 21... Bh6 {[%clk 0:02:57.7]} 22. f4
{[%clk 0:01:47.3]} 22... Ne4 {[%clk 0:02:52.3]} 23. Qe1 {[%clk 0:01:48]} 23...
Ndf6 {[%clk 0:02:31]} 24. c5 {[%clk 0:01:44.1]} 24... dxc5 {[%clk 0:02:26.2]}
25. bxc5 {[%clk 0:01:45]} 25... Nxc5 {[%clk 0:02:20.7]} 26. Nc4 {[%clk
0:01:45.6]} 26... Qd8 {[%clk 0:02:12.2]} 27. Rd1 {[%clk 0:01:46.5]} 27... Ng4
{[%clk 0:02:02.6]} 28. Qd2 {[%clk 0:01:38.1]} 28... b5 {[%clk 0:01:59.8]} 29.
Bxg4 {[%clk 0:01:36.8]} 29... hxg4 {[%clk 0:01:49.1]} 30. Ne3 {[%clk 0:01:35.7]}
30... Ne4 {[%clk 0:01:46.5]} 31. Qg2 {[%clk 0:01:36.1]} 31... f5 {[%clk
0:01:40.6]} 32. d6 {[%clk 0:01:35.8]} 32... Qh4 {[%clk 0:01:12.9]} 33. d7 {[%clk
0:01:21.5]} 33... Rd8 {[%clk 0:01:14]} 34. Rd4 {[%clk 0:01:21.2]} 34... Bg7
{[%clk 0:01:07.3]} 35. Rxe4 {[%clk 0:00:36.9]} 35... fxe4 {[%clk 0:01:06.2]} 36.
Qxe4 {[%clk 0:00:38]} 36... Rxd7 {[%clk 0:00:51.1]} 37. Qe6+ {[%clk 0:00:36.3]}
37... Rf7 {[%clk 0:00:52.5]} 38. Qxg6 {[%clk 0:00:34.8]} 38... g3 {[%clk
0:00:35.7]} 39. Qxg3 {[%clk 0:00:35.1]} 39... Qxg3 {[%clk 0:00:28]} 40. hxg3
{[%clk 0:00:37]} 40... Bd4 {[%clk 0:00:29.2]} 41. Nc2 {[%clk 0:00:34.4]} 41...
Bc5 {[%clk 0:00:27.5]} 42. Rd1 {[%clk 0:00:33.8]} 42... Rh7+ {[%clk 0:00:26.7]}
43. Kg2 {[%clk 0:00:34.4]} 43... Re7 {[%clk 0:00:28.6]} 44. Kf3 {[%clk
0:00:35.3]} 44... Kf7 {[%clk 0:00:27.6]} 45. g4 {[%clk 0:00:36.5]} 45... Rc7
{[%clk 0:00:27.3]} 46. f5 {[%clk 0:00:28.9]} 46... Bb6 {[%clk 0:00:27.4]} 47.
Nb4 {[%clk 0:00:26.4]} 47... Rc3+ {[%clk 0:00:26.6]} 48. Rd3 {[%clk 0:00:27.7]}
48... Rc4 {[%clk 0:00:16]} 49. Nd5 {[%clk 0:00:28.6]} 49... Bd8 {[%clk
0:00:15.1]} 50. Nf4 {[%clk 0:00:26.8]} 50... Be7 {[%clk 0:00:14.5]} 51. Ng6
{[%clk 0:00:26.5]} 51... Rc7 {[%clk 0:00:13.8]} 52. Ne5+ {[%clk 0:00:25.3]}
52... Kg7 {[%clk 0:00:14.6]} 53. Rd7 {[%clk 0:00:24.4]} 53... Rxd7 {[%clk
0:00:15.1]} 54. Nxd7 {[%clk 0:00:26.3]} 54... a5 {[%clk 0:00:16.4]} 55. Ke4
{[%clk 0:00:27.2]} 55... b4 {[%clk 0:00:17.4]} 56. Nb6 {[%clk 0:00:28.2]} 56...
Kf6 {[%clk 0:00:17]} 57. Nd5+ {[%clk 0:00:28.2]} 57... Kf7 {[%clk 0:00:18.2]}
58. Nxe7 {[%clk 0:00:29.3]} 58... Kxe7 {[%clk 0:00:19.3]} 59. Kd4 {[%clk
0:00:30.3]} 59... Kf6 {[%clk 0:00:20.5]} 60. Kc4 {[%clk 0:00:31.4]} 60... Kg5
{[%clk 0:00:22.2]} 61. Kb5 {[%clk 0:00:32.6]} 61... Kxg4 {[%clk 0:00:22.7]} 62.
f6 {[%clk 0:00:33.9]} 62... b3 {[%clk 0:00:24.6]} 63. axb3 {[%clk 0:00:34.4]}
63... Kf5 {[%clk 0:00:26.2]} 64. f7 {[%clk 0:00:35.2]} 64... a4 {[%clk 0:00:27]}
65. bxa4 {[%clk 0:00:35.7]} 65... Ke6 {[%clk 0:00:27.7]} 66. f8=Q {[%clk
0:00:36.3]} 1-0